fUST/lending_fUST_20250530
["ID","MTS","AMOUNT","RATE_DAILY","PERIOD"]
[363034785,1748556657300,-181.678163,0.00022,7]
[363034787,1748556657309,-5000.0,0.00022,2]
[363034789,1748556657319,-5000.0,0.00022,2]
[363034791,1748556657328,-5000.0,0.00022,2]
[363034793,1748556657337,-4757.0,0.00022,2]
[363034795,1748556657346,-232.089073,0.00022,7]
[363034797,1748556657355,-232.089073,0.00022,7]
[363034799,1748556657364,-151.0,0.00022,7]
[363034801,1748556657373,-151.0,0.00022,7]
[363034803,1748556657383,-151.0,0.00022,7]
[363034805,1748556657392,-151.0,0.00022,7]
[363034807,1748556657401,-151.0,0.00022,7]
[363034809,1748556657410,-281.971945,0.00022,7]
[363034811,1748556657419,-281.971945,0.00022,7]
[363034813,1748556657427,-2284.14,0.00022,7]
[363034814,1748556657436,-842.02,0.00022,7]
[363034817,1748556657445,-1746.624687,0.00022,7]
[363034819,1748556657455,-248.8068,0.00022,7]
[363034821,1748556657464,-248.8068,0.00022,7]
[363034823,1748556657472,-486.919081,0.00022,7]
[363034825,1748556657481,-486.919081,0.00022,7]
[363034826,1748556657491,-187.440992,0.00022,2]
[363034829,1748556657500,-187.440992,0.00022,2]
[363034830,1748556657510,-151.0,0.00022,7]
[363034832,1748556657520,-151.0,0.00022,7]
[363034834,1748556657529,-224.8074,0.00022,7]
[363034836,1748556657538,-224.8074,0.00022,7]
[363034838,1748556657548,-151.0,0.00022,7]
[363034840,1748556657557,-151.0,0.00022,7]
[363034842,1748556657566,-151.0,0.00022,7]
[363034844,1748556657575,-542.873165,0.00022,7]
[363034846,1748556657584,-542.873165,0.00022,7]
[363034848,1748556657593,-151.0,0.00022,7]
[363034850,1748556657602,-151.0,0.00022,7]
[363034852,1748556657611,-151.0,0.00022,7]
[363034854,1748556657620,-384.989524,0.00022,7]
[363034857,1748556657630,-384.989524,0.00022,7]
[363034858,1748556657639,-1436.859293,0.00022,7]
[363034861,1748556657648,-1436.859293,0.00022,7]
[363034862,1748556657657,-753.372016,0.00022,7]
[363034864,1748556657666,-753.372016,0.00022,7]
[363034867,1748556657675,-235.841609,0.00022,7]
[363034869,1748556657684,-235.841609,0.00022,7]
[363034871,1748556657693,-1399.321222,0.00022,7]
[363034873,1748556657703,-1399.321222,0.00022,7]
[363034875,1748556657712,-151.0,0.00022,7]
[363034877,1748556657721,-1981.204217,0.00022,2]
[363034879,1748556657730,-1981.204217,0.00022,2]
[363034881,1748556657739,-951.803411,0.00022,7]
[363034883,1748556657748,-951.803411,0.00022,7]
[363034885,1748556657757,-317.981892,0.00022,7]
[363034887,1748556657766,-317.981892,0.00022,7]
[363034888,1748556657775,-151.0,0.00022,7]
[363034891,1748556657785,-283.590442,0.00022,7]
[363034893,1748556657794,-151.0,0.00022,7]
[363034894,1748556657803,-151.0,0.00022,7]
[363034897,1748556657813,-244.197691,0.00022,7]
[363034898,1748556657822,-244.197691,0.00022,7]
[363034900,1748556657831,-212.70147903,0.00022,7]
[363034903,1748556657840,-187.657945,0.00022,7]
[363034905,1748556657849,-187.657945,0.00022,7]
[363034906,1748556657858,-223.540915,0.00022,7]
[363034909,1748556657868,-223.540915,0.00022,7]
[363034911,1748556657877,-151.0,0.00022,7]
[363034913,1748556657887,-393.151708,0.00022,7]
[363034915,1748556657896,-393.151708,0.00022,7]
[363034917,1748556657905,-12660.97845086,0.00022,7]
[363034919,1748556657915,-183.909113,0.00022,7]
[363034921,1748556657924,-183.909113,0.00022,7]
[363034922,1748556657933,-889.998081,0.00022,7]
[363034924,1748556657943,-889.998081,0.00022,7]
[363034926,1748556657952,-194.0,0.00022,2]
[363034928,1748556657961,-2646.17954571,0.00022038,2]
[363034930,1748556657970,-774.77,0.00022079,7]
[363034932,1748556657980,-3000.0,0.000221,2]
[363034934,1748556657989,-3000.0,0.0002211,2]
[363034936,1748556657999,-676.537697,0.0002211,7]
[363034938,1748556658008,-676.537697,0.0002211,7]
[363034940,1748556658018,-3000.0,0.0002212,2]
[363034942,1748556658028,-3000.0,0.0002213,2]
[363034944,1748556658037,-3000.0,0.0002214,2]
[363034946,1748556658047,-3343.37751352,0.00022141,6]
[363034948,1748556658056,-3000.0,0.0002215,2]
[363034950,1748556658066,-3000.0,0.0002216,2]
[363034952,1748556658076,-3000.0,0.0002217,2]
[363034954,1748556658085,-774.77,0.00022179,6]
[363034956,1748556658094,-3000.0,0.0002218,2]
[363034958,1748556658103,-3000.0,0.0002219,2]
[363034960,1748556658112,-160.0,0.0002219,2]
[363034962,1748556658122,-259.108459,0.00022191,7]
[363034964,1748556658131,-151.0,0.00022191,7]
[363034966,1748556658139,-216.655276,0.00022191,7]
[363034968,1748556658152,-216.655276,0.00022191,7]
[363034970,1748556658161,-151.0,0.00022191,7]
[363034972,1748556658170,-151.0,0.00022191,7]
[363034973,1748556658179,-151.0,0.00022191,7]
[363034976,1748556658190,-151.0,0.00022191,7]
[363034977,1748556658199,-151.0,0.00022191,7]
[363034979,1748556658208,-151.0,0.00022191,7]
[363034981,1748556658217,-151.0,0.00022191,7]
[363034983,1748556658227,-151.0,0.00022191,7]
[363034985,1748556658236,-248.8068,0.00022191,7]
[363034987,1748556658245,-248.8068,0.00022191,7]
[363034989,1748556658254,-220.738964,0.00022191,7]
[363034991,1748556658263,-151.0,0.00022191,7]
[363034993,1748556658273,-151.0,0.00022191,7]
[363034995,1748556658282,-151.0,0.00022191,7]
[363034997,1748556658291,-319.081541,0.00022191,7]
[363034998,1748556658300,-319.081541,0.00022191,7]
[363035000,1748556658309,-151.0,0.00022191,7]
[363035002,1748556658319,-151.0,0.00022191,7]
[363035004,1748556658328,-991.783639,0.00022191,7]
[363035006,1748556658337,-991.783639,0.00022191,7]
[363035008,1748556658347,-151.0,0.00022191,7]
[363035010,1748556658356,-151.0,0.00022191,7]
[363035012,1748556658365,-151.0,0.00022191,7]
[363035014,1748556658374,-280.085583,0.00022191,7]
[363035016,1748556658383,-280.085583,0.00022191,7]
[363035018,1748556658393,-430.0,0.00022191,2]
[363035020,1748556658402,-430.0,0.00022191,2]
[363035022,1748556658411,-610.035968,0.00022191,7]
[363035024,1748556658422,-610.035968,0.00022191,7]
[363035026,1748556658432,-430.0,0.00022191,2]
[363035028,1748556658441,-430.0,0.00022191,2]
[363035030,1748556658450,-430.0,0.00022191,2]
[363035032,1748556658460,-1705.92,0.00022191,2]
[363035034,1748556658469,-901.59,0.00022191,2]
[363035036,1748556658478,-676.537697,0.00022191,7]
[363035038,1748556658487,-676.537697,0.00022191,7]
[363035040,1748556658496,-551.92,0.00022191,2]
[363035041,1748556658506,-1174.86,0.00022191,2]
[363035043,1748556658515,-200.0,0.00022191,2]
[363035045,1748556658524,-200.0,0.00022191,2]
[363035047,1748556658533,-200.0,0.00022191,2]
[363035049,1748556658543,-200.0,0.00022191,2]
[363035051,1748556658552,-430.0,0.00022191,2]
[363035053,1748556658562,-200.0,0.00022191,2]
[363035055,1748556658571,-151.0,0.00022191,7]
[363035057,1748556658580,-200.0,0.00022191,2]
[363035059,1748556658589,-200.0,0.00022191,2]
[363035061,1748556658598,-200.0,0.00022191,2]
[363035063,1748556658607,-200.0,0.00022191,2]
[363035064,1748556658616,-200.0,0.00022191,2]
[363035066,1748556658626,-200.0,0.00022191,2]
[363035068,1748556658635,-235.61589154,0.00022191,2]
[363035070,1748556658644,-151.0,0.00022191,7]
[363035072,1748556658653,-574.61,0.00022191,2]
[363035074,1748556658663,-568.64,0.00022191,2]
[363035076,1748556658672,-570.595347,0.00022191,7]
[363035078,1748556658681,-570.595347,0.00022191,7]
[363035080,1748556658690,-444.16,0.00022191,2]
[363035082,1748556658699,-3431.655877,0.00022191,7]
[363035084,1748556658708,-3431.655877,0.00022191,7]
[363035086,1748556658718,-1091.61,0.00022191,2]
[363035088,1748556658727,-430.0,0.00022191,2]
[363035090,1748556658736,-151.0,0.00022191,7]
[363035092,1748556658746,-964.44,0.00022191,2]
[363035094,1748556658755,-430.0,0.00022191,2]
[363035096,1748556658764,-561.09,0.00022191,2]
[363035097,1748556658773,-244.197691,0.00022191,7]
[363035099,1748556658782,-2447.72,0.00022191,2]
[363035101,1748556658792,-244.197691,0.00022191,7]
[363035103,1748556658801,-430.0,0.00022191,2]
[363035105,1748556658810,-430.0,0.00022191,2]
[363035107,1748556658820,-801.7,0.00022191,2]
[363035109,1748556658829,-430.0,0.00022191,2]
[363035111,1748556658838,-797.63,0.00022191,2]
[363035113,1748556658847,-1112.73,0.00022191,2]
[363035115,1748556658856,-394.86627088,0.00022191,2]
[363035117,1748556658866,-6436.32,0.00022191,2]
[363035119,1748556658876,-2898.16,0.00022191,2]
[363035121,1748556658886,-430.0,0.00022191,2]
[363035123,1748556658895,-512.23,0.00022191,2]
[363035125,1748556658904,-1195.58,0.00022191,2]
[363035127,1748556658914,-960.67,0.00022191,2]
[363035129,1748556658923,-5639.66,0.00022191,2]
[363035131,1748556658932,-430.0,0.00022191,2]
[363035142,1748556659034,-1009.95,0.00022191,2]
[363035144,1748556659044,-8117.07,0.00022191,2]
[363035146,1748556659054,-632.99,0.00022191,2]
[363035148,1748556659063,-454.17,0.00022191,2]
[363035150,1748556659072,-452.41,0.00022191,2]
[363035152,1748556659081,-430.0,0.00022191,2]
[363035154,1748556659090,-2481.17,0.00022191,2]
[363035156,1748556659099,-795.07,0.00022191,2]
[363035158,1748556659109,-430.0,0.00022191,2]
[363035160,1748556659118,-187.657945,0.00022191,7]
[363035162,1748556659128,-4582.76,0.00022191,2]
[363035164,1748556659137,-187.657945,0.00022191,7]
[363035166,1748556659147,-430.0,0.00022191,2]
[363035168,1748556659158,-1104.94,0.00022191,2]
[363035170,1748556659168,-430.0,0.00022191,2]
[363035171,1748556659177,-430.0,0.00022191,2]
[363035173,1748556659187,-1081.58,0.00022191,2]
[363035175,1748556659197,-2052.87,0.00022191,2]
[363035177,1748556659206,-2823.79,0.00022191,2]
[363035179,1748556659215,-3349.55,0.00022191,2]
[363035181,1748556659224,-533.09,0.00022191,2]
[363035183,1748556659233,-453.98,0.00022191,2]
[363035185,1748556659242,-430.0,0.00022191,2]
[363035187,1748556659251,-2060.41,0.00022191,2]
[363035188,1748556659261,-10558.32,0.00022191,2]
[363035190,1748556659270,-1145.35,0.00022191,2]
[363035192,1748556659280,-2074.11,0.00022191,2]
[363035194,1748556659289,-5225.97,0.00022191,2]
[363035196,1748556659298,-2140.11,0.00022191,2]
[363035198,1748556659307,-649.73,0.00022191,2]
[363035200,1748556659317,-2100.01,0.00022191,2]
[363035202,1748556659326,-6991.29,0.00022191,2]
[363035204,1748556659336,-181.14961634,0.00022191,2]
[363035206,1748556659345,-430.0,0.00022191,2]
[363035208,1748556659355,-510.2,0.00022191,2]
[363035210,1748556659364,-2407.88,0.00022191,2]
[363035212,1748556659374,-442.75,0.00022191,2]
[363035214,1748556659383,-430.0,0.00022191,2]
[363035216,1748556659393,-752.26,0.00022191,2]
[363035218,1748556659402,-528.92,0.00022191,2]
[363035219,1748556659412,-657.44,0.00022191,2]
[363035221,1748556659423,-4103.81,0.00022191,2]
[363035223,1748556659433,-1941.04,0.00022191,2]
[363035225,1748556659442,-430.0,0.00022191,2]
[363035227,1748556659451,-430.0,0.00022191,2]
[363035229,1748556659459,-672.67,0.00022191,2]
[363035231,1748556659468,-585.92,0.00022191,2]
[363035233,1748556659477,-3697.22,0.00022191,2]
[363035235,1748556659487,-4101.92,0.00022191,2]
[363035237,1748556659497,-995.18,0.00022191,2]
[363035239,1748556659506,-3261.31,0.00022191,2]
[363035241,1748556659515,-1208.59,0.00022191,2]
[363035243,1748556659524,-997.46,0.00022191,2]
[363035245,1748556659533,-959.85,0.00022191,2]
[363035247,1748556659542,-683.43,0.00022191,2]
[363035249,1748556659551,-430.0,0.00022191,2]
[363035251,1748556659561,-352.7392262,0.00022192,2]
[363035253,1748556659571,-153.0,0.00022192,2]
[363035254,1748556659580,-572.078714,0.00022192,2]
[363035256,1748556659589,-153.0,0.00022192,2]
[363035258,1748556659598,-153.0,0.00022192,2]
[363035260,1748556659607,-572.078714,0.00022192,2]
[363035262,1748556659616,-153.0,0.00022192,2]
[363035264,1748556659626,-572.078714,0.00022192,2]
[363035266,1748556659634,-572.078714,0.00022192,2]
[363035268,1748556659643,-153.0,0.00022192,2]
[363035270,1748556659653,-153.0,0.00022192,2]
[363035272,1748556659663,-572.078714,0.00022192,2]
[363035274,1748556659672,-153.0,0.00022192,2]
[363035276,1748556659681,-564.9331697,0.00022192,2]
[363035278,1748556659690,-153.0,0.00022192,2]
[363035280,1748556659699,-417.3466021,0.00022192,2]
[363035281,1748556659709,-151.0,0.00022192,7]
[363035283,1748556659718,-223.540915,0.00022192,7]
[363035285,1748556659728,-223.540915,0.00022192,7]
[363035287,1748556659737,-3000.0,0.000222,2]
[363035289,1748556659747,-12660.97845086,0.000222,7]
[363035291,1748556659756,-3359.735911,0.0002221,2]
[363035293,1748556659765,-317.981892,0.0002221,7]
[363035295,1748556659775,-317.981892,0.0002221,7]
[363035297,1748556659784,-500.0,0.0002226,2]
[363035299,1748556659794,-384.989524,0.0002226,7]
[363035301,1748556659803,-384.989524,0.0002226,7]
[363035303,1748556659815,-1436.859293,0.0002226,7]
[363035305,1748556659824,-1436.859293,0.0002226,7]
[363035307,1748556659833,-753.372016,0.0002226,7]
[363035309,1748556659842,-753.372016,0.0002226,7]
[363035311,1748556659852,-774.77,0.00022279,4]
[363035313,1748556659861,-3343.37751352,0.00022314,7]
[363035315,1748556659870,-151.0,0.00022314,7]
[363035317,1748556659880,-393.151708,0.00022314,7]
[363035319,1748556659888,-393.151708,0.00022314,7]
[363035321,1748556659898,-183.909113,0.00022314,7]
[363035323,1748556659908,-183.909113,0.00022314,7]
[363035325,1748556659917,-774.77,0.00022379,2]
[363035326,1748556659926,-2646.17954571,0.00022423,2]
[363035328,1748556659935,-151.0,0.00022465,7]
[363035330,1748556659945,-151.0,0.00022465,7]
[363035332,1748556659954,-151.0,0.00022465,7]
[363035334,1748556659964,-151.0,0.00022465,7]
[363035336,1748556659973,-151.0,0.00022465,7]
[363035338,1748556659982,-151.0,0.00022465,7]
[363035340,1748556659992,-154.741014,0.00022465,7]
[363035342,1748556660001,-281.971945,0.00022465,7]
[363035344,1748556660011,-281.971945,0.00022465,7]
[363035346,1748556660020,-1746.624687,0.00022465,7]
[363035348,1748556660030,-486.919081,0.00022465,7]
[363035350,1748556660039,-486.919081,0.00022465,7]
[363035352,1748556660049,-187.440992,0.00022465,2]
[363035354,1748556660059,-187.440992,0.00022465,2]
[363035356,1748556660069,-151.0,0.00022465,7]
[363035358,1748556660079,-151.0,0.00022465,7]
[363035360,1748556660088,-319.081541,0.00022465,7]
[363035362,1748556660098,-319.081541,0.00022465,7]
[363035363,1748556660107,-224.8074,0.00022465,7]
[363035365,1748556660116,-224.8074,0.00022465,7]
[363035367,1748556660126,-151.0,0.00022465,7]
[363035369,1748556660135,-151.0,0.00022465,7]
[363035370,1748556660144,-151.0,0.00022465,7]
[363035371,1748556660156,-151.0,0.00022465,7]
[363035372,1748556660165,-542.873165,0.00022465,7]
[363035373,1748556660175,-542.873165,0.00022465,7]
[363035374,1748556660183,-151.0,0.00022465,7]
[363035375,1748556660193,-151.0,0.00022465,7]
[363035376,1748556660203,-259.103469,0.00022465,7]
[363035377,1748556660212,-151.0,0.00022465,7]
[363035378,1748556660220,-235.841609,0.00022465,7]
[363035379,1748556660231,-235.841609,0.00022465,7]
[363035380,1748556660241,-1399.321222,0.00022465,7]
[363035381,1748556660250,-1399.321222,0.00022465,7]
[363035382,1748556660259,-151.0,0.00022465,7]
[363035383,1748556660267,-151.0,0.00022465,7]
[363035384,1748556660277,-151.0,0.00022465,7]
[363035385,1748556660286,-280.085583,0.00022465,7]
[363035386,1748556660294,-280.085583,0.00022465,7]
[363035387,1748556660304,-430.0,0.00022465,2]
[363035388,1748556660313,-430.0,0.00022465,2]
[363035389,1748556660322,-1981.204217,0.00022465,2]
[363035390,1748556660331,-1981.204217,0.00022465,2]
[363035391,1748556660340,-951.803411,0.00022465,7]
[363035392,1748556660349,-951.803411,0.00022465,7]
[363035393,1748556660357,-610.035968,0.00022465,7]
[363035394,1748556660366,-610.035968,0.00022465,7]
[363035395,1748556660375,-430.0,0.00022465,2]
[363035396,1748556660384,-430.0,0.00022465,2]
[363035397,1748556660394,-430.0,0.00022465,2]
[363035398,1748556660403,-1705.92,0.00022465,2]
[363035399,1748556660412,-901.59,0.00022465,2]
[363035401,1748556660422,-551.92,0.00022465,2]
[363035403,1748556660432,-1174.86,0.00022465,2]
[363035405,1748556660442,-430.0,0.00022465,2]
[363035407,1748556660451,-151.0,0.00022465,7]
[363035409,1748556660460,-151.0,0.00022465,7]
[363035411,1748556660469,-574.61,0.00022465,2]
[363035413,1748556660479,-568.64,0.00022465,2]
[363035415,1748556660489,-570.595347,0.00022465,7]
[363035417,1748556660498,-570.595347,0.00022465,7]
[363035419,1748556660508,-444.16,0.00022465,2]
[363035421,1748556660517,-3431.655877,0.00022465,7]
[363035423,1748556660528,-3431.655877,0.00022465,7]
[363035425,1748556660537,-1091.61,0.00022465,2]
[363035427,1748556660547,-430.0,0.00022465,2]
[363035429,1748556660557,-964.44,0.00022465,2]
[363035431,1748556660566,-177.8,0.00022465,2]
[363035433,1748556660576,-151.0,0.00022465,7]
[363035435,1748556660585,-561.09,0.00022465,2]
[363035437,1748556660594,-2447.72,0.00022465,2]
[363035439,1748556660604,-430.0,0.00022465,2]
[363035441,1748556660613,-430.0,0.00022465,2]
[363035443,1748556660622,-801.7,0.00022465,2]
[363035445,1748556660632,-430.0,0.00022465,2]
[363035447,1748556660642,-797.63,0.00022465,2]
[363035449,1748556660652,-1112.73,0.00022465,2]
[363035452,1748556660662,-6436.32,0.00022465,2]
[363035454,1748556660672,-2898.16,0.00022465,2]
[363035456,1748556660682,-430.0,0.00022465,2]
[363035457,1748556660691,-512.23,0.00022465,2]
[363035460,1748556660701,-1195.58,0.00022465,2]
[363035461,1748556660711,-960.67,0.00022465,2]
[363035463,1748556660720,-5639.66,0.00022465,2]
[363035466,1748556660730,-430.0,0.00022465,2]
[363035468,1748556660739,-1009.95,0.00022465,2]
[363035470,1748556660748,-8117.07,0.00022465,2]
[363035471,1748556660758,-632.99,0.00022465,2]
[363035473,1748556660767,-454.17,0.00022465,2]
[363035476,1748556660778,-452.41,0.00022465,2]
[363035478,1748556660788,-430.0,0.00022465,2]
[363035480,1748556660798,-2481.17,0.00022465,2]
[363035482,1748556660808,-795.07,0.00022465,2]
[363035484,1748556660818,-430.0,0.00022465,2]
[363035495,1748556660916,-4582.76,0.00022465,2]
[363035497,1748556660927,-430.0,0.00022465,2]
[363035499,1748556660938,-1104.94,0.00022465,2]
[363035501,1748556660947,-430.0,0.00022465,2]
[363035503,1748556660958,-430.0,0.00022465,2]
[363035505,1748556660968,-1081.58,0.00022465,2]
[363035507,1748556660977,-2052.87,0.00022465,2]
[363035509,1748556660987,-2823.79,0.00022465,2]
[363035511,1748556660996,-3349.55,0.00022465,2]
[363035513,1748556661005,-533.09,0.00022465,2]
[363035515,1748556661014,-430.0,0.00022465,2]
[363035517,1748556661024,-2060.41,0.00022465,2]
[363035519,1748556661034,-10558.32,0.00022465,2]
[363035521,1748556661044,-1145.35,0.00022465,2]
[363035523,1748556661053,-2074.11,0.00022465,2]
[363035525,1748556661064,-5225.97,0.00022465,2]
[363035527,1748556661073,-2140.11,0.00022465,2]
[363035529,1748556661083,-649.73,0.00022465,2]
[363035531,1748556661092,-2100.01,0.00022465,2]
[363035533,1748556661102,-6991.29,0.00022465,2]
[363035535,1748556661111,-430.0,0.00022465,2]
[363035537,1748556661120,-510.2,0.00022465,2]
[363035539,1748556661130,-2407.88,0.00022465,2]
[363035541,1748556661141,-442.75,0.00022465,2]
[363035543,1748556661152,-430.0,0.00022465,2]
[363035545,1748556661165,-752.26,0.00022465,2]
[363035547,1748556661175,-528.92,0.00022465,2]
[363035549,1748556661184,-657.44,0.00022465,2]
[363035550,1748556661195,-4103.81,0.00022465,2]
[363035552,1748556661204,-1941.04,0.00022465,2]
[363035554,1748556661213,-430.0,0.00022465,2]
[363035557,1748556661223,-430.0,0.00022465,2]
[363035559,1748556661235,-672.67,0.00022465,2]
[363035561,1748556661246,-585.92,0.00022465,2]
[363035563,1748556661254,-3697.22,0.00022465,2]
[363035565,1748556661264,-4101.92,0.00022465,2]
[363035567,1748556661274,-995.18,0.00022465,2]
[363035569,1748556661284,-3261.31,0.00022465,2]
[363035571,1748556661293,-1208.59,0.00022465,2]
[363035573,1748556661302,-997.46,0.00022465,2]
[363035575,1748556661312,-959.85,0.00022465,2]
[363035577,1748556661321,-889.998081,0.00022465,7]
[363035579,1748556661330,-683.43,0.00022465,2]
[363035581,1748556661339,-889.998081,0.00022465,7]
[363035583,1748556661349,-430.0,0.00022465,2]
[363035584,1748556661358,-774.77,0.00022479,4]
[363035586,1748556661367,-3343.37751352,0.00022486,7]
[363035588,1748556661377,-216.655276,0.000225,7]
[363035590,1748556661386,-216.655276,0.000225,7]
[363035592,1748556661396,-151.0,0.000225,7]
[363035594,1748556661405,-242.943186,0.000225,7]
[363035596,1748556661415,-151.0,0.000225,7]
[363035598,1748556661424,-151.0,0.000225,7]
[363035600,1748556661433,-151.0,0.000225,7]
[363035602,1748556661443,-991.783639,0.0002253,7]
[363035604,1748556661452,-991.783639,0.0002253,7]
[363035606,1748556661462,-676.537697,0.0002253,7]
[363035608,1748556661471,-676.537697,0.0002253,7]
[363035610,1748556661480,-150.528,0.0002255,2]
[363035612,1748556661490,-195.973,0.0002255,2]
[363035614,1748556661499,-240.156,0.0002255,2]
[363035616,1748556661508,-150.0,0.0002255,2]
[363035618,1748556661517,-150.529,0.0002255,2]
[363035620,1748556661527,-150.0,0.0002255,2]
[363035622,1748556661537,-961.0,0.0002255,2]
[363035624,1748556661546,-708.0,0.0002255,2]
[363035626,1748556661555,-2228.0,0.0002255,2]
[363035628,1748556661566,-774.77,0.00022579,5]
[363035631,1748556661575,-151.0,0.0002258,7]
[363035633,1748556661585,-282.804831,0.0002258,7]
[363035635,1748556661595,-248.8068,0.0002258,7]
[363035637,1748556661604,-248.8068,0.0002258,7]
[363035639,1748556661615,-151.0,0.0002259,7]
[363035641,1748556661624,-151.0,0.0002259,7]
[363035643,1748556661633,-151.0,0.0002259,7]
[363035645,1748556661643,-3343.37751352,0.00022659,7]
[363035647,1748556661652,-774.77,0.00022679,6]
[363035649,1748556661661,-160.0,0.00022738,2]
[363035650,1748556661670,-181.678163,0.00022739,7]
[363035653,1748556661679,-181.678163,0.00022739,7]
[363035655,1748556661689,-232.089073,0.00022739,7]
[363035657,1748556661698,-232.089073,0.00022739,7]
[363035659,1748556661707,-219.546153,0.00022739,7]
[363035660,1748556661717,-151.0,0.00022739,7]
[363035663,1748556661727,-151.0,0.00022739,7]
[363035665,1748556661736,-151.0,0.00022739,7]
[363035667,1748556661746,-281.971945,0.00022739,7]
[363035669,1748556661755,-281.971945,0.00022739,7]
[363035671,1748556661765,-1746.624687,0.00022739,7]
[363035673,1748556661774,-151.0,0.00022739,7]
[363035674,1748556661783,-151.0,0.00022739,7]
[363035676,1748556661793,-224.8074,0.00022739,7]
[363035678,1748556661803,-224.8074,0.00022739,7]
[363035680,1748556661812,-3714.349623,0.00022739,7]
[363035682,1748556661822,-151.0,0.00022739,7]
[363035684,1748556661831,-151.0,0.00022739,7]
[363035686,1748556661841,-151.0,0.00022739,7]
[363035688,1748556661851,-542.873165,0.00022739,7]
[363035690,1748556661860,-542.873165,0.00022739,7]
[363035692,1748556661870,-151.0,0.00022739,7]
[363035694,1748556661879,-384.989524,0.00022739,7]
[363035696,1748556661889,-384.989524,0.00022739,7]
[363035698,1748556661898,-1436.859293,0.00022739,7]
[363035700,1748556661908,-1436.859293,0.00022739,7]
[363035702,1748556661917,-753.372016,0.00022739,7]
[363035704,1748556661927,-753.372016,0.00022739,7]
[363035706,1748556661936,-235.841609,0.00022739,7]
[363035708,1748556661945,-235.841609,0.00022739,7]
[363035710,1748556661955,-1399.321222,0.00022739,7]
[363035712,1748556661965,-1399.321222,0.00022739,7]
[363035714,1748556661974,-430.0,0.00022739,2]
[363035716,1748556661984,-430.0,0.00022739,2]
[363035718,1748556661994,-1981.204217,0.00022739,2]
[363035720,1748556662004,-1981.204217,0.00022739,2]
[363035722,1748556662014,-951.803411,0.00022739,7]
[363035724,1748556662023,-951.803411,0.00022739,7]
[363035726,1748556662033,-430.0,0.00022739,2]
[363035728,1748556662042,-430.0,0.00022739,2]
[363035730,1748556662051,-442.50619615,0.00022739,2]
[363035732,1748556662060,-1705.92,0.00022739,2]
[363035734,1748556662070,-317.981892,0.00022739,7]
[363035736,1748556662079,-317.981892,0.00022739,7]
[363035738,1748556662088,-901.59,0.00022739,2]
[363035740,1748556662097,-551.92,0.00022739,2]
[363035742,1748556662106,-1174.86,0.00022739,2]
[363035744,1748556662115,-430.0,0.00022739,2]
[363035746,1748556662125,-574.61,0.00022739,2]
[363035748,1748556662134,-568.64,0.00022739,2]
[363035750,1748556662143,-444.16,0.00022739,2]
[363035752,1748556662155,-151.0,0.00022739,7]
[363035754,1748556662164,-1091.61,0.00022739,2]
[363035756,1748556662174,-430.0,0.00022739,2]
[363035758,1748556662184,-964.44,0.00022739,2]